Cogmind - Beta 17 *** ADVENTURER MODE // 2026.07.01 @ 21:38:39 Player: smidge Result: Destroyed by Y-54 Guardian with Gatling Laser Performance ------------- Evolutions (0) 0 Regions Visited (3) 600 Robots Destroyed (22) 110 Value Destroyed (646) 646 Prototype IDs (2) 40 Alien Tech Used (0) 0 Bonus (0) 0 TOTAL SCORE: 1396 Bonus ------- None Cogmind --------- Core Integrity 0/250 Matter 7/300 Energy 100/100 System Corruption 0% Temperature Cool (6) Movement Treading (160) Location -7/Recycling Parts ------- > --- POWER (1) -------- (None) > --- PROPULSION (2) --- Light Treads Light Treads > --- UTILITY (2) ------ Large Storage Unit Structural Scanner > --- WEAPON (2) ------- Subdweller Laser Heavy Battle Rifle > --- INVENTORY (15) --- Wheel Wheel Wheel Subdweller Monowheel Disposable Heat Sink Large Storage Unit Terrain Scanner Light Armor Plating Barrage Gun Subdweller Shrapnel Launcher Subdweller Shrapnel Launcher Mining Laser Flamer Piercing Trap Peak State ------------ > --- POWER ------------ (None) > --- PROPULSION ------- Light Treads Light Treads > --- UTILITY ---------- Large Storage Unit Light Armor Plating > --- WEAPON ----------- Heavy Battle Rifle Subdweller Shrapnel Launcher > --- INVENTORY -------- Light Treads Wheel Wheel Wheel Subdweller Monowheel Disposable Heat Sink Large Storage Unit Structural Scanner Terrain Scanner Subdweller Laser Barrage Gun Subdweller Shrapnel Launcher Mining Laser Flamer Piercing Trap [Rating: 12] Favorites ----------- Power Ion Engine Engine Ion Engine Propulsion Light Treads Treads Light Treads Wheel Wheel Utility Large Storage Unit Device Terrain Scanner Storage Large Storage Unit Protection Light Armor Plating Weapon Light Assault Rifle Energy Gun Subdweller Laser Ballistic Gun Light Assault Rifle Launcher Subdweller Shrapnel Launcher Special Weapon Mining Laser Build | -11 -10 -10 -7 ------- Run | Yrd Mat Sub Rec Slots Evolved . | . . . . Power . | . . . . Propulsion . | . . . . Utility . | . . . . Weapon . | . . . . Parts Attached 25 | 6 4 14 1 Power 2 | 1 . 1 . Engine 2 | 1 . 1 . Core . | . . . . Reactor . | . . . . Propulsion 8 | 2 . 6 . Treads 3 | . . 3 . Leg . | . . . . Wheel 5 | 2 . 3 . Hover . | . . . . Flight . | . . . . Utility 5 | 1 2 1 1 Device 2 | . 1 . 1 Storage 2 | 1 1 . . Processor . | . . . . Hackware . | . . . . Protection 1 | . . 1 . Artifact . | . . . . Weapon 10 | 2 2 6 . Energy Gun 1 | . . 1 . Energy Cannon . | . . . . Ballistic Gun 5 | 2 1 2 . Ballistic Cannon . | . . . . Launcher 2 | . . 2 . Special Weapon 2 | . 1 1 . Impact Weapon . | . . . . Slashing Weapon . | . . . . Piercing Weapon . | . . . . Special Melee Weapon . | . . . . Unidentified Prototypes . | . . . . Parts Lost 7 | . . 7 . Power 1 | . . 1 . Propulsion 2 | . . 2 . Utility . | . . . . Weapon 4 | . . 4 . Highest Loss Streak 2 | . . 2 . To Critical Strikes . | . . . . Average Backups 12 | 2 7 13 13 Power . | . . . . Propulsion 4 | 1 3 5 4 Utility 4 | . 1 4 4 Weapon 3 | . 1 3 5 Tool/Special . | . . . . Unused Backups 6 | 1 . 1 4 Power 1 | 1 . . . Propulsion 1 | . . . 1 Utility 3 | . . 1 2 Weapon 1 | . . . 1 Tool/Special . | . . . . Average Slot Usage (%) 88 | . 96 87 85 Engine 4 | . 14 3 . Treads 15 | . . 15 28 Wheel 12 | . 28 11 . Device 6 | . 10 5 8 Storage 14 | . 14 14 14 Protection 6 | . . 8 5 Energy Gun 2 | . . 1 14 Ballistic Gun 15 | . 26 13 14 Launcher 6 | . . 8 . Special Weapon 3 | . 1 4 . Peak Build Rating 12 | 6 8 12 12 Average Rating 9 | 3 7 9 12 On Entrance 6 | . 6 8 12 Avg Prop Armor Cover (%) 10 | . . 10 . Naked Turns . | . . . . Heaviest Build 39 | 13 30 39 31 Greatest Support 40 | 20 20 40 40 Greatest Overweight (x) 3 | . 1 3 . Average Overweight (x) . | . . . . Largest Inventory Capacity 15 | 8 15 15 15 Average Capacity 14 | 6 12 15 15 Most Carried 15 | 5 12 15 14 Average Carried 13 | 2 7 14 14 Final Capacity 15 | 8 15 15 15 Final Carried 14 | 3 12 14 14 Class Distribution -------------------- 100% | Mutant Dominant Class ---------------- Mutant | -10/Materials Mutant | -10/Subcaves Mutant | -7/Recycling Resources | -11 -10 -10 -7 ----------- Run | Yrd Mat Sub Rec Matter Collected 851 | 197 162 492 . Remotely . | . . . . Salvage Created 555 | . 146 409 . Parts 31 | . 8 23 . Haulers Intercepted 1 | . 1 . . Recyclers Shooed . | . . . . Parts Field Recycled . | . . . . Retrieved Matter . | . . . . Parts Self-Destructed 9 | . . 9 . Prevented . | . . . . Parts Restored . | . . . . Kills | -11 -10 -10 -7 ------- Run | Yrd Mat Sub Rec Combat Hostiles Destroyed 19 | . 2 17 . Guns 7 | . 2 5 . Cannons 2 | . . 2 . AOE 10 | . . 10 . Classes Destroyed 6 | . 3 3 . Hauler 1 | . 1 . . Turret 1 | . . 1 . Watcher 1 | . 1 . . Swarmer 5 | . . 5 . Grunt 2 | . 2 . . Subdweller 12 | . . 12 . Best Kill Streak 3 | . 2 3 . Combat Bots Only 3 | . 1 3 . Max Kills in Single Turn 2 | . 1 2 . Gunslinging . | . . . . Exploded 2 | . . 2 . Melee . | . . . . Uniques/NPCs Destroyed . | . . . . Combat | -11 -10 -10 -7 -------- Run | Yrd Mat Sub Rec Hostile Shots Fired 124 | . 15 106 3 Missed 32 | . 5 27 . Hits 92 | . 10 79 3 Projectile 92 | . 10 79 3 AOE 2 | . . 2 . Damage Taken 1316 | . 91 1217 8 Core 253 | . 8 237 8 Absorbed by Shields . | . . . . Ignored by Resistances 372 | . 27 342 3 Core Remaining (%) 100 | 100 . . . Volleys Fired 81 | . 18 63 . Largest 2 | . 2 2 . Hottest 140 | . 100 140 . Shots Fired 136 | . 31 105 . Gun 101 | . 26 75 . Cannon . | . . . . Launcher 22 | . . 22 . Special 13 | . 5 8 . Kinetic 120 | . 26 94 . Thermal 16 | . 5 11 . Explosive . | . . . . Electromagnetic . | . . . . Robot Hit Streak 41 | . 9 41 . Robot Miss Streak 3 | . 2 3 . Penetration Max . | . . . . Secondary Targets . | . . . . Shots Hit Robots 98 | . 21 77 . Core Hits 45 | . 8 37 . Critical Kills . | . . . . Critical Parts Destroyed . | . . . . Critical Strikes . | . . . . Melee Attacks . | . . . . Impact . | . . . . Slashing . | . . . . Piercing . | . . . . Sneak Attacks . | . . . . Combat Hostiles . | . . . . Follow-up Attacks . | . . . . Damage Inflicted 2366 | . 238 2128 . Guns 979 | . 238 741 . Cannons . | . . . . Explosions 1365 | . . 1365 . Melee . | . . . . Ramming . | . . . . Kinetic 2282 | . 238 2044 . Thermal 84 | . . 84 . Explosive . | . . . . Electromagnetic . | . . . . Impact . | . . . . Slashing . | . . . . Piercing . | . . . . Highest Corruption . | . . . . Average Corruption . | . . . . Corruption Purged . | . . . . Corruption Blocked . | . . . . Overload Shots . | . . . . Overflow Damage 10 | . . 10 . Projectiles . | . . . . Explosions 10 | . . 10 . Melee . | . . . . Knockbacks . | . . . . Impact . | . . . . Kinetic . | . . . . Secondary . | . . . . Self-Inflicted Damage 144 | . . 144 . Shots 5 | . . 5 . Rammed . | . . . . Targets Rammed . | . . . . Kicked . | . . . . Crushed . | . . . . Highest Temperature 66 | . 66 18 . Average Temperature 22 | . 23 9 . Received Heat Transfer 441 | . 66 369 6 Siege Activations . | . . . . Martial Activations . | . . . . Shielding Activations . | . . . . Robots Disrupted . | . . . . Combat Hostiles . | . . . . Robots Corrupted . | . . . . Combat Hostiles . | . . . . Parts Fried . | . . . . Impact Corruptions . | . . . . Robots Melted . | . . . . Combat Hostiles . | . . . . Parts Melted 1 | . . 1 . Heat Transferred 235 | . . 235 . Parts Sabotaged . | . . . . Parts Stolen . | . . . . Parts Stripped . | . . . . Power Chain Reactions . | . . . . Alert | -11 -10 -10 -7 ------- Run | Yrd Mat Sub Rec Maximum Alert Level . | . . . . Low Security (%) 100 | 100 100 . 100 Level 1 . | . . . . Level 2 . | . . . . Level 3 . | . . . . Level 4 . | . . . . Level 5 . | . . . . High Security . | . . . . Max Security . | . . . . Peak Influence 45 | . 45 . 41 Initial 41 | . . . 41 Average 12 | . 16 . 9 Influence Increases 387 | . 146 225 16 Destroy 0b10 Robot/C 160 | . 40 120 . Destroy 0b10 Robot/NC 10 | . 10 . . Destroy Leader 4 | . 4 . . Successful Hack 28 | . 12 . 16 Destroy Structure 5 | . 5 . . Partial Spotted 15 | . 15 . . Lose Combat Pursuer 165 | . 60 105 . Influence Decreases 387 | . 139 132 116 Entered New Map 63 | . . 4 59 Time Decay 314 | . 139 118 57 Lost Part 10 | . . 10 . Squads Dispatched 2 | . 2 . . Investigation 2 | . 2 . . Extermination . | . . . . Reinforcement . | . . . . Assault . | . . . . Garrison . | . . . . Intercept . | . . . . Searches Triggered . | . . . . Construction Impeded . | . . . . Haulers Reinforced . | . . . . Active Scanning Responses . | . . . . Cargo Convoy Interrupts . | . . . . Stealth | -11 -10 -10 -7 --------- Run | Yrd Mat Sub Rec Distress Signals . | . . . . Communications Jammed . | . . . . Distress Signals . | . . . . Times Spotted 33 | . 8 24 1 Peak Tracking Total 5 | . 4 5 . Tactical Retreats 5 | . 2 3 . Traps | -11 -10 -10 -7 ------- Run | Yrd Mat Sub Rec Traps Triggered 1 | . 1 . . Indirectly . | . . . . Trap Hack Attempts . | . . . . Triggered . | . . . . Disarmed . | . . . . Reprogrammed . | . . . . Reused . | . . . . Traps Extracted . | . . . . Installed . | . . . . Triggered . | . . . . Most Traps Carried 1 | . . 1 1 Machines | -11 -10 -10 -7 ---------- Run | Yrd Mat Sub Rec Machines Disabled 5 | . . 5 . Max in Single Turn 3 | . . 3 . Machines Repaired . | . . . . Machines Dismantled . | . . . . Machines Sabotaged . | . . . . Overloaded Fab Kills . | . . . . Hacking | -11 -10 -10 -7 --------- Run | Yrd Mat Sub Rec Machines Accessed 10 | . 5 . 5 Terminals 10 | . 5 . 5 Fabricators . | . . . . Repair Stations . | . . . . Recycling Units . | . . . . Scanalyzers . | . . . . Garrison Access . | . . . . Total Hacks 22 | . 12 . 10 Successful 9 | . 5 . 4 Failed 13 | . 7 . 6 Catastrophic 4 | . 3 . 1 Database Lockouts . | . . . . Manual 7 | . 3 . 4 Terminals 22 | . 12 . 10 Fabricators . | . . . . Repair Stations . | . . . . Recycling Units . | . . . . Scanalyzers . | . . . . Garrison Access . | . . . . Terminal Hacks 9 | . 5 . 4 Record 1 | . . . 1 Prototype ID Bank 1 | . . . 1 Level Access Points 1 | . . . 1 Locate Traps 1 | . 1 . . Registered Prototypes 1 | . 1 . . Zone Layout 4 | . 3 . 1 Fabricator Hacks . | . . . . Repair Station Hacks . | . . . . Recycling Unit Hacks . | . . . . Scanalyzer . | . . . . Garrison Access Hacks . | . . . . Unauthorized Hacks . | . . . . Terminals . | . . . . Fabricators . | . . . . Repair Stations . | . . . . Recycling Units . | . . . . Scanalyzers . | . . . . Garrison Access . | . . . . Data Cores Recovered . | . . . . Used . | . . . . Hacking Detections 10 | . 5 . 5 Full Trace Events 1 | . 1 . . Feedback Events . | . . . . Feedback Blocked . | . . . . Robot Schematics Acquired . | . . . . Robots Built . | . . . . Authchips . | . . . . Time . | . . . . Total Robot Build Rating . | . . . . Part Schematics Acquired . | . . . . Parts Built . | . . . . Authchips . | . . . . Time . | . . . . Total Part Build Rating . | . . . . Part Studies Acquired . | . . . . Parts Repaired . | . . . . Time . | . . . . Parts Recycled . | . . . . Recycled Matter . | . . . . Retrieved Matter . | . . . . Retrieved Components . | . . . . Parts Scanalyzed . | . . . . Part Schematics Acquired . | . . . . Parts Damaged . | . . . . Bothacking | -11 -10 -10 -7 ------------ Run | Yrd Mat Sub Rec Used RIF Installer . | . . . . Robots Hacked . | . . . . Non-combat . | . . . . Combat . | . . . . Robot Hacks Applied . | . . . . Relay Couplers Released . | . . . . Fabnet Peak Effective % . | . . . . Robots Rewired . | . . . . Allies Hacked . | . . . . Hacks Repelled . | . . . . Allies | -11 -10 -10 -7 -------- Run | Yrd Mat Sub Rec Total Allies . | . . . . Largest Group . | . . . . Highest-Rated Group . | . . . . Highest-Rated Ally . | . . . . Total Orders . | . . . . Ally Attacks . | . . . . Total Damage . | . . . . Kills . | . . . . Allies Corrupted . | . . . . Allies Melted . | . . . . Intel | -11 -10 -10 -7 ------- Run | Yrd Mat Sub Rec Active Infowar (turns) 1087 | . 253 671 163 Terrain 924 | . 253 671 . Structural 163 | . . . 163 Robot Analysis Total . | . . . . Derelict Logs Recovered 1 | . . 1 . Drone Launches . | . . . . Drone Recoveries . | . . . . Exploration | -11 -10 -10 -7 ------------- Run | Yrd Mat Sub Rec Turns Passed 2245 | 43 321 1617 264 Spaces Moved 1590 | 38 276 1113 163 Core 2 | 2 . . . Treads 660 | . . 497 163 Legs . | . . . . Wheels 928 | 36 276 616 . Hover . | . . . . Flight . | . . . . Fastest Speed 50 | 50 80 95 160 Average Speed 121 | 78 89 125 160 Slowest Speed 240 | 80 95 240 160 Overloaded Moves . | . . . . Propulsion Burnouts . | . . . . Robots Hopped . | . . . . Potential Cave-ins . | . . . . Cave-ins Triggered . | . . . . Exploration Rate (%) 43 | 4 56 78 37 Regions Visited 3 Branch Regions 2 Pre-discovered Areas . | . . . . Known Exits Taken . | . . . . Unknown Exits Taken 3 | 1 1 1 . Scrap Searched 4 | . . 4 . Spaces Dug 21 | . 5 16 . Terrain Destroyed 210 | . 5 205 . Melee . | . . . . Projectile 6 | . 5 1 . AOE 204 | . . 204 . Terrain Rammed . | . . . . Walls Destroyed . | . . . . Machines Disabled . | . . . . Actions | -11 -10 -10 -7 --------- Run | Yrd Mat Sub Rec Total 1747 | 51 308 1223 165 Wait 12 | . 2 9 1 Move 1587 | 37 275 1112 163 Hop . | . . . . Pick Up 27 | 7 8 12 . Fast Attach 6 | 3 1 2 . Attach 8 | 3 . 5 . Detach . | . . . . Swap 19 | . 4 14 1 Drop 7 | 1 . 6 . Fire 81 | . 18 63 . Melee . | . . . . Ram . | . . . . Kick . | . . . . Crush . | . . . . Escape Stasis . | . . . . Rewire . | . . . . Trap . | . . . . Miscellaneous . | . . . . Route ------- -11/Scrapyard -10/Materials (discovered 3 exits: [*Mat] / [*Min] / *Sub) -10/Subcaves (discovered 3 exits: *Mat x2 / *Rec) -7/Recycling (discovered 1 exit: Fac) History --------- Turn | Location | Event 2 | -11/Scrapyard | Met Revision 17 12 | -11/Scrapyard | Discovered new exit (range 14) 44 | -11/Scrapyard | Entered Materials 133 | -10/Materials | Discovered new exit (range 11) 243 | -10/Materials | Discovered new exit (range 7) 308 | -10/Materials | Build established: Mutant 356 | -10/Materials | Discovered new exit (range 10) 365 | -10/Materials | Entered Subcaves 366 | -10/Subcaves | Approached by a straggling Scientist 581 | -10/Subcaves | Core integrity fell below 50% 601 | -10/Subcaves | Identified exit to Materials 986 | -10/Subcaves | Shifting Twisted Machinery released Battle Cannon 1110 | -10/Subcaves | Discovered exit to Materials (range 13) 1197 | -10/Subcaves | A swath of the cavern ceiling suddenly collapsed 1381 | -10/Subcaves | Shifting Twisted Machinery released Barrage Gun 1589 | -10/Subcaves | Core integrity fell below 20% 1770 | -10/Subcaves | Curiously followed by a Cobbler waking with a query about "LVR3C" 1857 | -10/Subcaves | Discovered new exit (range 14) 1982 | -10/Subcaves | Entered Recycling 2204 | -7/Recycling | Identified exit to Factory 2246 | -7/Recycling | Destroyed by Y-54 Guardian with Gatling Laser Last Messages --------------- 02020_ Connecting with Terminal... 02020_ Current location identified: Recycling 02044_ Connecting with Terminal... >>Query(Human) Homo sapiens, dominant species in the [Solar System] until civilization in that system was presumably wiped out during the [Solar War]. 02065_ Connecting with Terminal... >>Prototypes Downloading prototype IDs... Aerolev Unit Cld. Particle Cannon >>Layout(Zone) Retrieving Zone 5H layout... Downloaded map data. 02204_ Connecting with Terminal... >>Access(Main) Found 1 level access point to Factory: (60,24) Map updated. 02246_ Y-54 Guardian springs to life. Map ----- +----------------------------------------------------+ | ?????????????????????????????????????????????????? | | ?????????????????????????????????????????????????? | | ?????????????????????????????????????????????????? | | ?????????????????????????????